bitfinex-derivatives/quotes_BTCF0:USTF0_20250911
["timestamp","ask_amount","ask_price","bid_price","bid_amount"]
[1757596617671,0.3628,113590.0,113580.0,1.59337938]
[1757596617881,0.3628,113590.0,113580.0,0.37431588]
[1757596618082,0.6128,113590.0,113580.0,0.96359]
[1757596618386,0.6128,113590.0,113580.0,1.12871294]
[1757596618775,0.6128,113590.0,113580.0,0.96359]
[1757596618977,0.6128,113590.0,113580.0,0.20919294]
[1757596619277,0.6128,113590.0,113580.0,0.21799294]
[1757596620378,0.6128,113590.0,113580.0,0.05287]
[1757596621182,0.6128,113590.0,113580.0,0.21799294]
[1757596623976,0.3628,113590.0,113580.0,0.21799294]
[1757596625284,0.3628,113590.0,113580.0,0.05287]
[1757596625678,0.3628,113590.0,113580.0,0.21799294]
[1757596625881,0.6128,113590.0,113580.0,0.02621]
[1757596626383,0.3628,113590.0,113580.0,0.21799294]
[1757596627783,0.6128,113590.0,113580.0,0.02621]
[1757596627984,0.6128,113590.0,113580.0,0.0108]
[1757596627985,0.77792294,113590.0,113580.0,0.0108]
[1757596628178,1.75898136,113590.0,113560.0,0.03417966]
[1757596628383,0.7216,113570.0,113560.0,0.03417966]
[1757596628587,0.88672294,113570.0,113560.0,0.03417966]
[1757596628781,0.7216,113570.0,113560.0,0.03417966]
[1757596629180,0.7216,113570.0,113560.0,0.04283]
[1757596629380,0.7216,113570.0,113560.0,0.20795294]
[1757596629584,0.7216,113570.0,113560.0,0.20895294]
[1757596630082,0.7216,113570.0,113560.0,0.04383]
[1757596630286,0.7216,113570.0,113560.0,0.20895294]
[1757596630683,0.7226,113570.0,113560.0,0.21295294]
[1757596630988,0.7226,113570.0,113560.0,0.30099194]
[1757596631177,0.7226,113570.0,113560.0,0.55099194]
[1757596631789,0.3618,113570.0,113560.0,0.55099194]
[1757596631993,0.3628,113570.0,113560.0,0.386869]
[1757596632283,0.3628,113570.0,113560.0,1.46143194]
[1757596632589,0.002,113570.0,113560.0,1.46143194]
[1757596633492,0.3628,113570.0,113560.0,1.46143194]
[1757596633985,0.3628,113570.0,113560.0,1.84143194]
[1757596634291,0.002,113570.0,113560.0,1.84143194]
[1757596634681,0.002,113570.0,113560.0,1.92030488]
[1757596635491,0.3608,113590.0,113580.0,0.04207]
[1757596635785,0.3608,113590.0,113580.0,0.96231588]
[1757596636090,0.3608,113590.0,113580.0,0.37231588]
[1757596636286,0.3608,113590.0,113580.0,0.04207]
[1757596636590,0.3608,113590.0,113580.0,0.20719294]
[1757596636786,0.3608,113590.0,113580.0,0.20819294]
[1757596636992,0.6108,113590.0,113580.0,0.01641]
[1757596637185,0.6118,113590.0,113580.0,0.21019294]
[1757596637587,0.3618,113590.0,113580.0,0.21019294]
[1757596638286,0.3618,113590.0,113580.0,0.46333938]
[1757596638492,0.3618,113590.0,113580.0,0.37531588]
[1757596639193,0.3618,113590.0,113580.0,0.4541998]
[1757596639194,0.3458,113590.0,113580.0,0.4541998]
[1757596640485,0.3458,113590.0,113580.0,0.12395392]
[1757596640691,0.3458,113590.0,113580.0,0.28907686]
[1757596642191,0.3458,113590.0,113580.0,0.12395392]
[1757596642397,0.3458,113590.0,113580.0,0.28907686]
[1757596642693,0.76092294,113590.0,113580.0,0.01841]
[1757596644595,0.5958,113590.0,113580.0,0.01841]
[1757596644790,0.5958,113590.0,113580.0,0.003]
[1757596644994,0.76092294,113590.0,113580.0,0.003]
[1757596645795,0.5958,113590.0,113580.0,0.003]
[1757596645992,1.24648,113590.0,113580.0,0.0192]
[1757596649098,1.24648,113590.0,113580.0,0.04429]
[1757596649501,1.24648,113590.0,113580.0,0.12317392]
[1757596649696,1.24648,113590.0,113580.0,0.0192]
[1757596650192,1.41023647,113590.0,113580.0,0.0192]
[1757596651496,1.66023647,113590.0,113580.0,0.003]
[1757596654001,1.66023647,113590.0,113580.0,0.08188392]
[1757596654397,1.66023647,113590.0,113580.0,0.003]
[1757596654697,1.49648,113590.0,113580.0,0.003]
[1757596654896,1.66023647,113590.0,113570.0,0.0088]
[1757596655205,0.52455647,113580.0,113570.0,0.0088]
[1757596655995,0.52455647,113580.0,113570.0,0.08768392]
[1757596656295,0.53330548,113580.0,113570.0,0.08768392]
[1757596656701,0.53330548,113580.0,113570.0,0.08868392]
[1757596657602,0.53430548,113580.0,113570.0,0.08968392]
[1757596657804,0.53430548,113580.0,113570.0,0.09168392]
[1757596657992,0.96886295,113580.0,113560.0,0.0162]
[1757596658196,1.66803647,113570.0,113550.0,0.12661918]
[1757596658500,0.52455647,113560.0,113550.0,0.01617]
[1757596658896,0.77455647,113560.0,113550.0,0.01617]
[1757596659297,0.52455647,113560.0,113550.0,0.01617]
[1757596660005,0.77455647,113560.0,113550.0,0.01617]
[1757596660402,0.77455647,113560.0,113550.0,0.01817]
[1757596661002,0.77655647,113560.0,113550.0,0.01717]
[1757596661200,1.50752,113560.0,113550.0,0.01817]
[1757596661403,1.67127647,113560.0,113550.0,0.01817]
[1757596662102,1.67135647,113560.0,113550.0,0.01817]
[1757596662304,0.52955647,113560.0,113550.0,0.01817]
[1757596662505,1.42111647,113560.0,113550.0,0.01817]
[1757596662800,1.49223982,113560.0,113550.0,0.01817]
[1757596663397,0.43692335,113560.0,113550.0,0.01817]
[1757596663594,0.43692335,113560.0,113550.0,0.29326]
[1757596663805,1.32868335,113560.0,113550.0,0.29326]
[1757596664100,1.32864335,113560.0,113550.0,0.29326]
[1757596664305,1.49339982,113560.0,113550.0,0.29326]
[1757596664501,1.49239982,113560.0,113550.0,0.29326]
[1757596665205,1.49139982,113560.0,113550.0,0.29326]
[1757596666101,1.49139982,113560.0,113550.0,0.26817]
[1757596666606,1.48975982,113560.0,113550.0,0.26817]
[1757596667201,1.48931982,113560.0,113550.0,0.29326]
[1757596667696,1.48931982,113560.0,113550.0,0.26817]
[1757596669501,1.48931982,113560.0,113550.0,0.29326]
[1757596670305,0.43692335,113560.0,113550.0,0.04326]
[1757596670512,1.32520335,113560.0,113550.0,0.04326]
[1757596671210,0.3658,113560.0,113550.0,0.45701647]
[1757596672103,0.3658,113560.0,113550.0,0.09695592]
[1757596672304,0.52955647,113560.0,113550.0,0.01817]
[1757596673605,0.3658,113560.0,113550.0,0.01817]
[1757596673805,0.52955647,113560.0,113550.0,0.01817]
[1757596674907,0.59946861,113560.0,113550.0,0.01817]
[1757596676115,0.59946861,113560.0,113550.0,0.04492]
[1757596676316,0.43571214,113560.0,113550.0,0.04492]
[1757596676515,1.32335214,113560.0,113550.0,0.04492]
[1757596677214,1.32335214,113560.0,113550.0,0.20867647]
[1757596677417,1.32335214,113560.0,113550.0,0.04492]
[1757596677714,0.43571214,113560.0,113550.0,0.04492]
[1757596677907,0.43571214,113560.0,113550.0,0.20867647]
[1757596678107,0.3658,113560.0,113550.0,0.45867647]
[1757596678308,0.3658,113560.0,113550.0,0.37385598]
[1757596679006,0.3658,113560.0,113550.0,0.29492]
[1757596680515,0.3658,113560.0,113550.0,0.45867647]
[1757596682408,0.3658,113560.0,113550.0,0.53761245]
[1757596682605,0.3658,113560.0,113550.0,0.37385598]
[1757596682810,0.3658,113560.0,113550.0,0.53761245]
[1757596683117,0.3658,113560.0,113550.0,1.04867647]
[1757596683309,0.3658,113560.0,113550.0,0.45867647]
[1757596683823,0.3658,113560.0,113550.0,1.09926886]
[1757596684120,0.3658,113560.0,113550.0,0.56926886]
[1757596684307,0.005,113560.0,113550.0,0.56926886]
[1757596684716,0.005,113560.0,113550.0,0.63955335]
[1757596685016,0.3658,113560.0,113550.0,0.52896096]
[1757596685913,0.3658,113560.0,113550.0,0.53753354]
[1757596686617,0.3658,113560.0,113550.0,0.29621756]
[1757596686820,0.3658,113560.0,113550.0,0.04492]
[1757596687016,0.3658,113560.0,113550.0,0.15547591]
[1757596687224,0.6158,113560.0,113550.0,0.12872591]
[1757596687417,0.6158,113560.0,113550.0,0.09715713]
[1757596688017,0.6158,113560.0,113550.0,0.01817]
[1757596688319,0.6158,113560.0,113550.0,0.09715713]
[1757596691319,0.6158,113560.0,113550.0,0.12390713]
[1757596691516,0.6158,113560.0,113550.0,0.09715713]
[1757596692420,0.80021934,113560.0,113540.0,0.09518713]
[1757596692618,1.24804,113550.0,113540.0,0.0162]
[1757596692813,1.49804,113550.0,113540.0,0.0162]
[1757596693019,1.66179647,113550.0,113540.0,0.0162]
[1757596693322,1.49804,113550.0,113540.0,0.0162]
[1757596693521,1.66179647,113550.0,113540.0,0.0162]
[1757596694021,1.66179647,113550.0,113540.0,0.0172]
[1757596694218,1.66179647,113550.0,113540.0,0.0182]
[1757596694619,1.50004,113550.0,113540.0,0.0182]
[1757596694923,1.66379647,113550.0,113540.0,0.0182]
[1757596695612,1.66379647,113550.0,113530.0,0.0162]
[1757596695817,0.77455647,113540.0,113530.0,0.0162]
[1757596696025,0.52455647,113540.0,113530.0,0.0162]
[1757596696218,0.6108,113540.0,113530.0,0.0162]
[1757596696427,0.79523632,113540.0,113530.0,0.0162]
[1757596696629,0.86418867,113540.0,113520.0,0.0162]
[1757596696822,1.41171647,113530.0,113520.0,0.0162]
[1757596697531,1.41171647,113530.0,113510.0,0.01599]
[1757596697726,0.52455647,113520.0,113510.0,0.01599]
[1757596698028,1.41167647,113520.0,113510.0,0.01599]
[1757596699621,1.82543294,113520.0,113500.0,0.01599]
[1757596699825,0.52455647,113510.0,113500.0,0.01599]
[1757596700226,0.53314279,113510.0,113500.0,0.01599]
[1757596700728,0.78314279,113510.0,113490.0,0.01599]
[1757596700930,1.41167647,113500.0,113490.0,0.01599]
[1757596701323,1.24792,113500.0,113490.0,0.01599]
[1757596701537,1.41167647,113500.0,113490.0,0.01599]
[1757596701825,0.38129336,113500.0,113490.0,0.01599]
[1757596702030,0.38129336,113500.0,113490.0,0.01799]
[1757596702031,1.26841336,113500.0,113490.0,0.01799]
[1757596702724,1.26941336,113500.0,113490.0,0.01899]
[1757596703427,1.43320983,113500.0,113490.0,0.01899]
[1757596704030,1.43320983,113500.0,113490.0,0.01999]
[1757596704031,1.43420983,113500.0,113490.0,0.01999]
[1757596705826,1.5063642,113500.0,113490.0,0.01999]
[1757596706132,1.5062842,113500.0,113490.0,0.01999]
[1757596706735,0.45544773,113500.0,113490.0,0.01999]
[1757596707031,1.34248773,113500.0,113490.0,0.29674]
[1757596707328,1.5062442,113500.0,113490.0,0.01999]
[1757596707526,0.6192042,113500.0,113490.0,0.01999]
[1757596707733,1.34248773,113500.0,113490.0,0.01999]
[1757596707931,1.5062442,113500.0,113490.0,0.01999]
[1757596708134,1.34248773,113500.0,113490.0,0.04461]
[1757596708333,1.50761941,113500.0,113490.0,0.04461]
[1757596708836,1.34244773,113500.0,113490.0,0.04461]
[1757596709427,0.45544773,113500.0,113490.0,0.04461]
[1757596709631,0.45544773,113500.0,113490.0,0.45974168]
[1757596709823,1.34240773,113500.0,113490.0,0.45974168]
[1757596710725,0.38329336,113500.0,113490.0,0.45974168]
[1757596711033,0.38329336,113500.0,113490.0,0.62487336]
[1757596711634,0.38329336,113500.0,113490.0,0.30337831]
[1757596711933,0.38329336,113500.0,113490.0,0.63364167]
[1757596712138,0.38329336,113500.0,113490.0,0.45974168]
[1757596712530,0.38329336,113500.0,113490.0,0.62487336]
[1757596712726,0.38329336,113500.0,113490.0,0.29461]
[1757596712933,0.38329336,113500.0,113490.0,0.62487336]
[1757596713641,0.38329336,113500.0,113490.0,0.74487336]
[1757596713939,0.38329336,113500.0,113490.0,0.63365199]
[1757596714135,0.3608,113510.0,113500.0,0.04001]
[1757596714334,0.3608,113510.0,113500.0,0.76514168]
[1757596714534,0.3608,113510.0,113500.0,0.11899713]
[1757596714836,0.3608,113510.0,113500.0,0.20514168]
[1757596715338,0.3618,113510.0,113500.0,0.04101]
[1757596715544,0.3628,113510.0,113500.0,0.20814168]
[1757596717036,0.3628,113510.0,113500.0,0.45814168]
[1757596717744,0.3628,113510.0,113500.0,0.29301]
[1757596718037,0.3628,113510.0,113500.0,1.15327336]
[1757596718338,0.002,113510.0,113500.0,1.06712881]
[1757596718534,0.002,113510.0,113500.0,1.13799383]
[1757596719041,0.002,113510.0,113500.0,1.06712881]
[1757596719341,0.002,113510.0,113500.0,0.81712881]
[1757596721843,0.002,113510.0,113500.0,0.73814168]
[1757596722042,0.002,113510.0,113500.0,1.62446168]
[1757596722739,0.002,113510.0,113500.0,1.73501759]
[1757596723329,0.002,113510.0,113500.0,1.73493759]
[1757596723833,0.3628,113510.0,113500.0,1.42485759]
[1757596724038,0.6128,113510.0,113500.0,0.23245688]
[1757596724241,0.6128,113510.0,113500.0,0.39758856]
[1757596724536,0.6128,113510.0,113500.0,0.12190097]
[1757596724737,0.6128,113510.0,113500.0,0.20814168]
[1757596726036,0.6128,113510.0,113500.0,0.28703265]
[1757596726638,0.77793168,113510.0,113500.0,0.01839]
[1757596728842,1.49864,113510.0,113500.0,0.01839]
[1757596730048,0.6128,113510.0,113500.0,0.01839]
[1757596730247,1.49856,113510.0,113500.0,0.01839]
[1757596731152,0.6128,113510.0,113500.0,0.04301]
[1757596731350,1.49856,113510.0,113500.0,0.04301]
[1757596731550,1.49856,113510.0,113500.0,0.01839]
[1757596731954,0.77793168,113510.0,113500.0,0.01839]
[1757596732153,1.66365168,113510.0,113500.0,0.01839]
[1757596734755,1.49852,113510.0,113500.0,0.01839]
[1757596735150,1.24836,113510.0,113500.0,0.20765168]
[1757596736662,1.24828,113510.0,113500.0,0.20765168]
[1757596736855,0.3628,113510.0,113500.0,0.20765168]
[1757596737057,0.3628,113510.0,113500.0,0.45765168]
[1757596737457,0.3628,113510.0,113500.0,0.53654265]
[1757596737663,0.34848143,113510.0,113500.0,0.66654265]
[1757596737862,0.34848143,113510.0,113500.0,0.76278336]
[1757596738163,0.34848143,113510.0,113500.0,0.53664316]
[1757596738358,0.34848143,113510.0,113500.0,1.01664316]
[1757596738565,0.34848143,113510.0,113500.0,0.53664316]
[1757596738958,0.34848143,113510.0,113500.0,1.10664316]
[1757596739565,0.34848143,113510.0,113500.0,0.45765168]
[1757596739967,0.38160248,113520.0,113510.0,0.03946]
[1757596740169,0.3608,113520.0,113510.0,0.39421285]
[1757596740358,0.35022788,113520.0,113510.0,1.29802482]
[1757596740559,0.35022788,113520.0,113510.0,2.23306482]
[1757596740968,0.35022788,113520.0,113510.0,1.63306424]
[1757596741460,0.35022788,113520.0,113510.0,2.22113604]
[1757596741660,0.35022788,113520.0,113510.0,2.13306424]
[1757596741856,0.3608,113530.0,113520.0,0.01533]
[1757596742063,0.3608,113530.0,113520.0,0.94972336]
[1757596742263,0.3608,113530.0,113520.0,0.48033518]
[1757596743065,0.3608,113530.0,113520.0,0.48903586]
[1757596743260,0.37439,113530.0,113520.0,0.48033518]
[1757596743468,0.37439,113530.0,113520.0,0.45459168]
[1757596743660,0.37439,113530.0,113520.0,0.20559168]
[1757596743860,0.37439,113530.0,113520.0,0.15107182]
[1757596744069,0.37439,113530.0,113520.0,0.39516521]
[1757596744257,0.37439,113530.0,113520.0,0.15107182]
[1757596744462,0.37439,113530.0,113520.0,0.23002818]
[1757596744669,0.37439,113530.0,113520.0,0.11941636]
[1757596744970,0.37639,113530.0,113520.0,0.12041636]
[1757596745562,0.37639,113530.0,113520.0,0.04146]
[1757596745763,0.37639,113530.0,113520.0,0.20659168]
[1757596746171,0.37639,113530.0,113520.0,0.09628226]
[1757596746366,0.37639,113530.0,113520.0,0.01733]
[1757596746570,0.37639,113530.0,113520.0,0.09628226]
[1757596746759,0.37639,113530.0,113520.0,0.01733]
[1757596746963,0.37639,113530.0,113520.0,0.09628226]
[1757596747165,0.37639,113530.0,113520.0,0.12041226]
[1757596747472,0.37639,113530.0,113520.0,0.28554394]
[1757596747865,0.3628,113530.0,113520.0,0.28554394]
[1757596748072,0.3628,113530.0,113520.0,0.70067562]
[1757596748273,0.3628,113530.0,113520.0,0.62172336]
[1757596748466,0.3628,113530.0,113520.0,0.70067562]
[1757596748768,0.002,113530.0,113520.0,0.73233518]
[1757596749163,0.002,113530.0,113520.0,2.55741518]
[1757596749476,0.002,113530.0,113520.0,1.50600336]
[1757596749668,0.37999535,113540.0,113520.0,1.50600336]
[1757596749867,0.37999535,113540.0,113530.0,0.3150786]
[1757596750677,0.37999535,113540.0,113530.0,0.03946]
[1757596750969,0.37999535,113540.0,113530.0,0.20459168]
[1757596751175,0.38099535,113540.0,113530.0,0.20459168]
[1757596752172,0.38299535,113540.0,113530.0,0.3160786]
[1757596752368,0.02319535,113540.0,113530.0,0.3160786]
[1757596752564,0.38399535,113540.0,113530.0,0.3160786]
[1757596753073,0.38199535,113540.0,113530.0,0.3150786]
[1757596753272,0.38199535,113540.0,113530.0,0.3170786]
[1757596753476,0.38299535,113540.0,113530.0,0.3180786]
[1757596754079,0.38299535,113540.0,113530.0,0.15294692]
[1757596754278,0.38199535,113540.0,113530.0,0.3170786]
[1757596754578,0.38299535,113540.0,113530.0,0.3180786]
[1757596756681,0.39658535,113540.0,113530.0,0.3180786]
[1757596757879,0.02219535,113540.0,113530.0,0.6788786]
[1757596758184,0.02219535,113540.0,113530.0,0.3180786]
[1757596760375,0.02219535,113540.0,113530.0,0.20759168]
[1757596760777,0.02219535,113540.0,113530.0,0.3180786]
[1757596761281,0.02219535,113540.0,113530.0,0.20759168]
[1757596761978,0.02219535,113540.0,113530.0,0.3180786]
[1757596762285,0.02219535,113540.0,113530.0,1.2011586]
[1757596762580,0.02219535,113540.0,113530.0,1.3311586]
[1757596762976,0.002,113540.0,113530.0,1.6692149]
[1757596763179,0.3608,113550.0,113530.0,1.55872798]
[1757596763378,0.39432287,113560.0,113550.0,0.03894]
[1757596763583,0.39432287,113560.0,113550.0,0.28299336]
[1757596763880,0.39432287,113560.0,113550.0,0.3145306]
[1757596764375,0.39432287,113560.0,113550.0,0.39344261]
[1757596764571,0.39432287,113560.0,113550.0,0.28298369]
[1757596765274,0.3608,113570.0,113550.0,0.47966228]
[1757596765481,0.37366,113570.0,113560.0,0.28304358]
[1757596765983,0.37366,113570.0,113560.0,0.20407168]
[1757596766281,0.37366,113570.0,113560.0,0.3145306]
[1757596766585,0.3628,113570.0,113560.0,0.3145306]
[1757596767282,0.002,113570.0,113560.0,0.3145306]
[1757596768080,0.002,113570.0,113560.0,0.20407168]
[1757596768279,0.381601,113580.0,113560.0,0.3146132]
[1757596768480,0.003,113570.0,113560.0,1.03280152]
[1757596768680,0.003,113570.0,113560.0,0.93101566]
[1757596769185,0.005,113570.0,113560.0,1.05201566]
[1757596769378,0.005,113570.0,113560.0,1.18193566]
[1757596769580,0.003,113570.0,113560.0,1.90806734]
[1757596769776,0.003,113570.0,113560.0,1.47806734]
[1757596769986,0.003,113570.0,113560.0,2.21123172]
[1757596770188,0.001,113570.0,113560.0,2.21023172]
[1757596770488,0.381601,113580.0,113560.0,2.04454446]
[1757596770792,0.020801,113580.0,113570.0,0.31310881]
[1757596770981,0.020801,113580.0,113570.0,0.28154498]
[1757596771287,0.394461,113580.0,113570.0,0.11784888]
[1757596771486,0.394461,113580.0,113570.0,0.28154498]
[1757596772481,0.033661,113580.0,113570.0,0.2026361]
[1757596772687,0.034661,113580.0,113570.0,0.2026361]
[1757596772887,0.021801,113580.0,113570.0,1.0844361]
[1757596773382,0.021801,113580.0,113570.0,1.19690881]
[1757596774388,0.001,113580.0,113570.0,0.7626616]
[1757596774589,0.3608,113600.0,113590.0,0.03894]
[1757596774890,0.3608,113600.0,113590.0,1.0842361]
[1757596775085,0.3608,113600.0,113590.0,0.2026361]
[1757596775284,0.37526,113600.0,113590.0,1.27325261]
[1757596775483,0.37526,113600.0,113590.0,1.10955651]
[1757596775690,0.37526,113600.0,113590.0,1.16292557]
[1757596775893,0.37626,113600.0,113590.0,1.16492557]
[1757596776090,0.3618,113600.0,113590.0,0.2046361]
[1757596776387,0.37626,113600.0,113590.0,1.00108835]
[1757596776783,0.37626,113600.0,113590.0,1.16478445]
[1757596777286,0.37626,113600.0,113590.0,0.11968835]
[1757596777592,0.37626,113600.0,113590.0,1.16462445]
[1757596777788,0.01546,113600.0,113590.0,1.23352547]
[1757596778092,0.3618,113600.0,113590.0,1.15477712]
[1757596778386,0.001,113600.0,113590.0,1.15477712]
[1757596778592,0.001,113600.0,113590.0,1.23352547]
[1757596779985,0.001,113600.0,113590.0,1.15477712]
[1757596780182,0.001,113600.0,113590.0,1.23346632]
[1757596781493,0.001,113600.0,113590.0,1.78346632]
[1757596781695,0.3608,113610.0,113590.0,2.04278682]
[1757596781995,0.3608,113610.0,113600.0,0.28131209]
[1757596782191,0.3608,113610.0,113600.0,0.68131209]
[1757596782390,0.37526,113610.0,113600.0,0.35131209]
[1757596782593,0.37526,113610.0,113600.0,1.16195209]
[1757596782993,0.37626,113610.0,113600.0,1.16195209]
[1757596783295,0.37726,113610.0,113600.0,1.14619561]
[1757596783499,0.3618,113610.0,113600.0,1.14619561]
[1757596783691,0.3628,113610.0,113600.0,1.14719561]
[1757596783884,0.3628,113610.0,113600.0,1.0842761]
[1757596784097,0.3628,113610.0,113600.0,1.16495209]
[1757596784700,0.35383938,113610.0,113600.0,1.16495209]
[1757596785295,0.35383938,113610.0,113600.0,1.16695209]
[1757596785798,0.002,113610.0,113600.0,1.16695209]
[1757596786195,0.002,113610.0,113600.0,1.15118885]
[1757596786393,0.002,113610.0,113600.0,1.23919115]
[1757596786588,0.002,113610.0,113600.0,1.7762784]
[1757596786789,0.002,113610.0,113600.0,2.10495439]
[1757596786998,0.002,113610.0,113600.0,1.85273599]
[1757596787197,0.002,113610.0,113600.0,0.88631209]
[1757596787397,0.37726,113610.0,113600.0,0.32631209]
[1757596787602,0.62726,113610.0,113600.0,0.92398]
[1757596787896,0.62726,113610.0,113600.0,0.1068594]
[1757596788501,0.62726,113610.0,113600.0,0.04394]
[1757596789101,0.62726,113610.0,113600.0,0.01961]
[1757596789403,0.62726,113610.0,113600.0,0.04394]
[1757596790205,0.62726,113610.0,113600.0,0.0825294]
[1757596790693,0.7909561,113610.0,113600.0,0.005]
[1757596791093,0.62726,113610.0,113600.0,0.04394]
[1757596791290,0.62726,113610.0,113600.0,0.1068594]
[1757596792501,0.62726,113610.0,113600.0,0.2705555]
[1757596793005,0.7909561,113610.0,113600.0,0.1068594]
[1757596793206,0.62726,113610.0,113600.0,0.1068594]
[1757596795309,0.62726,113610.0,113600.0,0.04394]
[1757596796512,0.62726,113610.0,113600.0,0.04418]
[1757596796809,0.62726,113610.0,113600.0,0.12285599]
[1757596797110,0.62726,113610.0,113600.0,0.04418]
[1757596797307,0.62726,113610.0,113600.0,0.12285599]
[1757596798614,0.37726,113610.0,113600.0,0.12285599]
[1757596799512,0.37726,113610.0,113600.0,0.04418]
[1757596800211,0.37726,113610.0,113600.0,0.2078761]
[1757596800408,0.002,113610.0,113600.0,0.4578761]
[1757596800611,0.002,113610.0,113600.0,1.44688314]
[1757596800810,0.0002591,113610.0,113600.0,2.07488554]
[1757596801005,0.0002591,113610.0,113600.0,2.07517934]
[1757596801205,0.0002591,113610.0,113600.0,1.98717694]
[1757596801617,0.0002591,113610.0,113600.0,1.10849694]
[1757596801816,0.3735991,113610.0,113600.0,1.34705694]
[1757596802113,0.3735991,113610.0,113600.0,1.19705694]
[1757596802419,0.0127991,113610.0,113600.0,1.19705694]
[1757596803015,0.0002591,113610.0,113600.0,1.19705694]
[1757596803312,0.0002591,113610.0,113600.0,1.44705694]
[1757596803506,0.0002591,113610.0,113600.0,1.3364361]
[1757596803709,0.0002591,113610.0,113600.0,1.7564361]
[1757596804113,0.0002591,113610.0,113600.0,1.91400064]
[1757596804315,0.0002591,113610.0,113600.0,2.02467021]
[1757596804918,0.0002591,113610.0,113600.0,1.86710567]
[1757596806009,0.0002591,113610.0,113600.0,1.7564361]
[1757596806514,0.0002591,113610.0,113600.0,1.91400064]
[1757596807106,0.3608,113630.0,113610.0,0.01433]
[1757596807311,0.3608,113630.0,113620.0,1.19115675]
[1757596807714,0.38091733,113640.0,113630.0,0.01433]
[1757596808019,0.39345733,113640.0,113630.0,0.31322587]
[1757596808224,0.38091733,113640.0,113630.0,0.31322587]
[1757596808516,0.3618,113650.0,113630.0,0.31322587]
[1757596808716,0.3618,113650.0,113640.0,0.28158059]
[1757596808918,0.3618,113650.0,113640.0,0.2025961]
[1757596809322,0.3618,113650.0,113640.0,0.69783576]
[1757596809323,0.001,113650.0,113640.0,0.69783576]
[1757596809517,0.3618,113650.0,113640.0,0.17783576]
[1757596809720,0.3618,113650.0,113640.0,1.05551576]
[1757596809917,0.3618,113650.0,113640.0,0.37422587]
[1757596810217,0.001,113650.0,113640.0,0.40155534]
[1757596810424,0.001,113650.0,113640.0,1.43852557]
[1757596810726,0.3618,113650.0,113640.0,1.43852557]
[1757596810920,0.3618,113650.0,113640.0,1.27482947]
[1757596811110,0.3618,113650.0,113640.0,1.43852557]
[1757596811617,0.3618,113650.0,113640.0,1.35963273]
[1757596811816,0.3618,113650.0,113640.0,1.36063273]
[1757596812018,0.3618,113650.0,113640.0,1.3075264]
[1757596812217,0.3618,113650.0,113640.0,1.4712225]
[1757596813428,0.3618,113650.0,113640.0,1.3072464]
[1757596813612,0.3618,113650.0,113640.0,1.4709425]
[1757596814421,0.3618,113650.0,113640.0,1.54137986]
[1757596814816,0.3618,113650.0,113640.0,1.54113986]
[1757596815322,0.3618,113650.0,113640.0,0.66409986]
[1757596815528,0.3618,113650.0,113640.0,1.54109986]
[1757596816024,0.37434,113650.0,113640.0,0.66409986]
[1757596816720,0.37434,113650.0,113640.0,1.54101986]
[1757596816919,0.3618,113650.0,113640.0,1.54101986]
[1757596817125,0.3618,113650.0,113640.0,0.66409986]
[1757596817326,0.3618,113650.0,113640.0,0.74281206]
[1757596817522,0.37434,113650.0,113640.0,1.50894229]
[1757596818022,0.3618,113650.0,113640.0,1.27480883]
[1757596818221,0.001,113650.0,113640.0,1.50894229]
[1757596818423,0.3618,113650.0,113640.0,1.50894229]
[1757596818923,0.3618,113650.0,113640.0,1.43023009]
[1757596819227,0.001,113650.0,113640.0,1.54085986]
[1757596819920,0.3618,113650.0,113640.0,0.66409986]
[1757596820226,0.3618,113650.0,113640.0,1.54061986]
[1757596821125,0.3618,113650.0,113640.0,0.75207216]
[1757596821330,0.3618,113650.0,113640.0,1.62847216]
[1757596821528,0.3618,113650.0,113640.0,1.74553889]
[1757596821729,0.001,113650.0,113640.0,1.6671664]
[1757596821931,0.001,113650.0,113640.0,1.54045986]
[1757596822115,0.001,113650.0,113640.0,1.02489986]
[1757596822322,0.001,113650.0,113640.0,1.54037986]
[1757596822622,0.001,113650.0,113640.0,1.90117986]
[1757596822823,0.001,113650.0,113640.0,2.10576346]
[1757596823023,0.001,113650.0,113640.0,2.36576346]
[1757596823217,0.001,113650.0,113640.0,2.44445487]
[1757596823423,0.001,113650.0,113640.0,2.25558912]
[1757596823827,0.001,113650.0,113640.0,2.36576346]
[1757596824034,0.3608,113670.0,113660.0,0.03937]
[1757596824223,0.3608,113670.0,113660.0,1.2213357]
[1757596824623,0.37294,113670.0,113660.0,1.22822809]
[1757596824824,0.01214,113670.0,113660.0,1.22822809]
[1757596825118,0.37294,113670.0,113660.0,1.22822809]
[1757596825925,0.37494,113670.0,113660.0,1.22922809]
[1757596826222,0.37494,113670.0,113660.0,1.22902809]
[1757596826832,0.01414,113670.0,113660.0,0.91621]
[1757596827126,0.002,113670.0,113660.0,1.15034346]
[1757596827936,0.002,113670.0,113660.0,1.22902809]
[1757596828231,0.002,113670.0,113660.0,1.3805178]
[1757596828433,0.002,113670.0,113660.0,1.2605178]
[1757596828628,0.002,113670.0,113660.0,1.27034346]
[1757596828936,0.002,113670.0,113660.0,1.84536719]
[1757596829135,0.002,113670.0,113660.0,2.09536719]
[1757596829438,0.3608,113690.0,113680.0,0.03937]
[1757596829634,0.3608,113690.0,113680.0,1.02512823]
[1757596829834,0.3608,113690.0,113680.0,1.25926169]
[1757596830038,0.3608,113690.0,113680.0,1.14898346]
[1757596830238,0.3608,113690.0,113680.0,0.91485]
[1757596830440,0.3608,113690.0,113680.0,1.14898346]
[1757596830731,0.3608,113690.0,113680.0,1.22773202]
[1757596830934,0.3648,113690.0,113680.0,1.26026169]
[1757596831234,0.3668,113690.0,113680.0,1.26126169]
[1757596831740,0.3668,113690.0,113680.0,1.46113519]
[1757596831940,0.006,113690.0,113680.0,1.69820192]
[1757596832147,0.006,113690.0,113680.0,2.27792192]
[1757596832333,0.006,113690.0,113680.0,2.45308955]
[1757596832533,0.006,113690.0,113680.0,2.35126891]
[1757596833040,0.002,113690.0,113680.0,2.35226891]
[1757596833235,0.3608,113700.0,113680.0,2.35126891]
[1757596833440,0.3608,113700.0,113690.0,0.50048063]
[1757596834427,0.3608,113700.0,113690.0,0.62048063]